bitfinex-derivatives/quotes_ETHF0:USTF0_20240830
["timestamp","ask_amount","ask_price","bid_price","bid_amount"]
[1725041619778,4.54408768,2477.1,2477.0,3.2078]
[1725041620274,8.58088768,2477.1,2477.0,3.61153]
[1725041620477,8.58088768,2477.1,2477.0,3.2078]
[1725041620680,8.98459768,2477.1,2477.0,3.2078]
[1725041620880,8.58088768,2477.1,2477.0,3.2078]
[1725041621084,8.98459768,2477.1,2477.0,3.2078]
[1725041621382,8.58088768,2477.1,2477.0,3.61153]
[1725041621588,0.3648,2477.2,2477.1,0.40371]
[1725041622178,4.93202927,2477.2,2477.1,0.40371]
[1725041623795,4.93202927,2477.2,2477.0,3.61152]
[1725041624091,5.33573927,2477.2,2477.0,3.2078]
[1725041624393,5.33572927,2477.2,2477.0,3.61152]
[1725041624586,5.33572927,2477.2,2477.0,3.61153]
[1725041624884,5.33572927,2477.2,2477.0,3.2078]
[1725041625086,4.93202927,2477.2,2477.0,3.2078]
[1725041625287,4.93202927,2477.2,2477.0,3.61152]
[1725041625595,5.33572927,2477.2,2477.0,3.61152]
[1725041625891,0.40371,2477.1,2477.0,3.2078]
[1725041626091,5.33573927,2477.2,2477.0,3.2078]
[1725041626278,4.64427225,2477.1,2477.0,3.2078]
[1725041626484,4.64427225,2477.1,2477.0,3.61153]
[1725041627095,4.64427225,2477.1,2477.0,3.2078]
[1725041627389,4.64427225,2477.1,2477.0,3.61153]
[1725041627586,4.64427225,2477.1,2477.0,3.2078]
[1725041627803,5.04798225,2477.1,2477.0,3.2078]
[1725041627987,9.08478225,2477.1,2477.0,3.2078]
[1725041628184,8.68107225,2477.1,2477.0,3.2078]
[1725041628380,4.64427225,2477.1,2477.0,3.2078]
[1725041628581,4.64427225,2477.1,2477.0,3.61153]
[1725041628883,4.64427225,2477.1,2477.0,3.2078]
[1725041629083,5.04798225,2477.1,2477.0,3.2078]
[1725041629283,4.64427225,2477.1,2477.0,3.2078]
[1725041629687,5.04798225,2477.1,2477.0,3.2078]
[1725041630388,4.64427225,2477.1,2477.0,3.61153]
[1725041630597,4.64427225,2477.1,2477.0,3.2078]
[1725041630892,0.40376,2476.9,2476.7,3.61158]
[1725041631200,5.65356225,2477.1,2477.0,0.40373]
[1725041631201,4.64427225,2477.1,2477.0,0.40373]
[1725041631381,4.64427225,2477.1,2477.0,3.61153]
[1725041632192,5.04798225,2477.1,2477.0,3.2078]
[1725041632397,6.05727225,2477.1,2477.0,3.2078]
[1725041632694,0.40376,2476.9,2476.7,7.11157]
[1725041632887,5.65356225,2477.1,2476.7,6.7078]
[1725041632888,0.40376,2476.8,2476.7,6.7078]
[1725041633092,4.65178805,2476.8,2476.7,3.61158]
[1725041633486,4.48217356,2477.0,2476.9,0.40375]
[1725041633686,0.3648,2477.2,2476.9,0.40375]
[1725041633898,0.40372,2477.1,2476.9,0.40375]
[1725041634091,4.88590356,2477.0,2476.8,0.40376]
[1725041634398,0.40373,2477.0,2476.8,0.40376]
[1725041634595,4.62074061,2476.9,2476.8,0.40376]
[1725041636296,4.62074061,2476.9,2476.8,4.44136]
[1725041639014,0.3648,2477.2,2477.1,0.40371]
[1725041639198,0.00606367,2477.3,2477.2,0.4037]
[1725041639397,0.40974367,2477.3,2477.2,0.4037]
[1725041639700,0.40974367,2477.3,2477.1,3.2078]
[1725041639701,0.4037,2477.2,2477.1,3.2078]
[1725041640089,4.97796963,2477.2,2477.1,3.2078]
[1725041640293,1.413,2477.1,2477.0,0.00606367]
[1725041640495,5.4498,2477.1,2477.0,0.00606367]
[1725041640700,9.86499396,2477.1,2477.0,0.00606367]
[1725041641613,8.45199396,2477.1,2477.0,0.40979367]
[1725041641814,4.81890396,2477.1,2477.0,0.00606367]
[1725041642018,8.85570396,2477.1,2477.0,0.00606367]
[1725041642520,9.86499396,2477.1,2477.0,0.00606367]
[1725041643515,13.28699396,2477.1,2477.0,0.00606367]
[1725041643915,13.28699396,2477.1,2476.8,3.2078]
[1725041643916,0.40375,2476.9,2476.8,3.2078]
[1725041644220,5.83363726,2476.9,2476.8,3.2078]
[1725041644529,5.83363726,2476.9,2476.5,3.5]
[1725041644530,0.40379,2476.6,2476.5,3.2078]
[1725041644915,4.60743549,2476.6,2476.5,3.2078]
[1725041646416,4.20364549,2476.6,2476.5,3.61161]
[1725041646614,4.60743549,2476.6,2476.5,3.2078]
[1725041646822,0.40379,2476.6,2476.5,3.61161]
[1725041647020,0.40379,2476.6,2476.5,3.2078]
[1725041647321,5.23720547,2476.6,2476.5,3.6116]
[1725041647512,4.83341547,2476.6,2476.5,3.2078]
[1725041647715,4.83341547,2476.6,2476.5,3.61161]
[1725041648515,4.83341547,2476.6,2476.5,0.40381]
[1725041648716,5.23720547,2476.6,2476.5,3.61161]
[1725041650326,8.87101547,2476.6,2476.5,3.61161]
[1725041650621,5.23720547,2476.6,2476.5,3.61161]
[1725041651021,4.83341547,2476.6,2476.5,3.61161]
[1725041651211,5.23720547,2476.6,2476.5,3.61161]
[1725041651413,3.7985,2477.0,2476.9,2.42249]
[1725041651414,2.52818,2477.0,2476.9,2.42249]
[1725041651609,2.52818,2477.0,2476.9,11.55912017]
[1725041651815,2.52818,2477.0,2476.9,22.24016053]
[1725041652023,0.00606367,2477.3,2477.2,1.41295]
[1725041652317,1.12106367,2477.3,2477.2,8.53074938]
[1725041652522,1.12106367,2477.3,2477.2,12.56754938]
[1725041653419,1.12106367,2477.3,2477.2,13.21099289]
[1725041654224,1.12106367,2477.3,2477.2,14.00586706]
[1725041654926,1.12106367,2477.3,2477.2,12.99661706]
[1725041655225,1.12106367,2477.3,2477.2,14.00586706]
[1725041656419,1.12106367,2477.3,2477.2,14.00590523]
[1725041658918,0.51533385,2477.3,2477.2,14.00590523]
[1725041659621,0.51533385,2477.3,2477.2,14.00590436]
[1725041660524,0.51533385,2477.3,2477.2,12.99665436]
[1725041660722,3.2078,2479.0,2477.2,16.57465436]
[1725041660929,0.40345,2478.7,2478.6,6.7078]
[1725041661117,5.83108455,2478.8,2478.6,3.90346]
[1725041661317,0.21845396,2479.2,2478.7,8.58742842]
[1725041661621,4.25221863,2479.1,2479.0,3.9034]
[1725041661825,4.25221863,2479.1,2479.0,4.31324716]
[1725041662024,0.00605009,2479.3,2479.1,0.40339]
[1725041662025,4.44398538,2479.2,2479.1,0.40339]
[1725041662218,0.00605009,2479.3,2479.2,4.43697]
[1725041662420,0.00605009,2479.3,2479.2,8.05451326]
[1725041662826,0.00605009,2479.3,2479.2,7.64477]
[1725041663130,0.40940009,2479.3,2479.2,3.61753022]
[1725041663320,4.66642668,2479.3,2479.2,3.2078]
[1725041663523,4.26307668,2479.3,2479.2,3.2078]
[1725041664025,4.26307668,2479.3,2479.2,3.61117]
[1725041664222,4.26307668,2479.3,2479.2,3.2078]
[1725041664925,4.66642668,2479.3,2479.2,3.2078]
[1725041665626,4.66642668,2479.3,2478.9,0.40341]
[1725041665627,0.40342,2479.0,2478.9,3.2078]
[1725041666022,4.26307668,2479.3,2478.9,6.7078]
[1725041666224,4.26307668,2479.3,2478.9,7.11122]
[1725041666225,0.40338,2479.2,2478.9,7.11122]
[1725041666631,4.47801677,2479.1,2478.9,7.11122]
[1725041667124,4.47801677,2479.1,2478.9,7.11121]
[1725041667331,4.88141677,2479.1,2478.9,6.7078]
[1725041667532,5.24181677,2479.1,2478.9,6.7078]
[1725041667728,0.7638,2479.1,2478.9,6.7078]
[1725041667929,4.39079216,2479.0,2478.9,7.11122]
[1725041668133,4.39079216,2479.0,2478.9,6.7078]
[1725041668329,4.39079216,2479.0,2478.9,7.11122]
[1725041668636,4.39079216,2479.0,2478.9,6.7078]
[1725041668831,4.39079216,2479.0,2478.9,7.11122]
[1725041670332,4.79419216,2479.0,2478.9,6.7078]
[1725041670836,9.83631216,2479.0,2478.9,3.2078]
[1725041671033,0.00605009,2479.3,2478.9,3.2078]
[1725041671034,0.00605009,2479.3,2478.9,14.24996]
[1725041671236,0.00605009,2479.3,2479.2,7.11117]
[1725041671738,0.00605009,2479.3,2479.2,18.15321]
[1725041672327,0.21160085,2479.9,2479.8,0.40327]
[1725041672526,0.3739,2480.1,2479.8,3.2078]
[1725041672527,0.77714,2480.1,2479.8,3.2078]
[1725041672728,4.70318249,2479.9,2479.8,3.2078]
[1725041673038,4.70318249,2479.9,2479.8,6.7078]
[1725041673039,4.29992249,2479.9,2479.8,6.7078]
[1725041673240,4.29992249,2479.9,2479.8,7.11107]
[1725041673740,4.29992249,2479.9,2479.8,6.7078]
[1725041673934,4.29992249,2479.9,2479.8,7.11107]
[1725041674139,4.29992249,2479.9,2479.8,6.7078]
[1725041674439,4.70318249,2479.9,2479.8,3.2078]
[1725041674830,8.73598249,2479.9,2479.8,3.2078]
[1725041675432,9.74413249,2479.9,2479.8,3.2078]
[1725041675631,9.34087249,2479.9,2479.5,3.2078]
[1725041675833,5.30807249,2479.9,2479.5,3.2078]
[1725041676041,0.40331,2479.6,2479.5,3.2078]
[1725041676531,4.68741189,2479.6,2479.5,3.2078]
[1725041676734,8.72021189,2479.6,2479.5,3.2078]
[1725041678341,4.28410189,2479.6,2479.5,3.61112]
[1725041678540,4.68741189,2479.6,2479.5,3.2078]
[1725041678842,0.4033,2479.7,2479.5,3.2078]
[1725041679133,4.54159811,2479.6,2479.5,3.2078]
[1725041679340,4.94490811,2479.6,2479.5,3.2078]
[1725041679646,0.40331,2479.6,2479.5,3.2078]
[1725041680141,0.2,2480.0,2479.5,3.2078]
[1725041680142,0.2,2480.0,2479.5,6.7078]
[1725041680329,3.2078,2481.3,2479.5,6.7078]
[1725041680330,3.61084,2481.3,2481.0,0.40307]
[1725041680527,0.6030608,2481.2,2480.9,3.90309]
[1725041680727,4.28227511,2481.1,2480.9,3.5]
[1725041680928,4.28227511,2481.2,2481.0,3.2078]
[1725041681137,3.5,2481.2,2480.7,3.2078]
[1725041681441,0.40311,2480.8,2480.7,0.00605009]
[1725041681840,8.84298845,2480.8,2480.7,0.00605009]
[1725041682339,4.81178845,2480.8,2480.7,3.21385009]
[1725041682531,8.84298845,2480.8,2480.7,3.21385009]
[1725041683536,8.84298845,2480.8,2480.7,2.62195009]
[1725041683935,8.43987845,2480.8,2480.4,3.2078]
[1725041684149,4.40867845,2480.8,2480.4,3.2078]
[1725041684335,0.40313,2480.7,2480.4,3.61097]
[1725041684851,4.88593054,2480.6,2480.4,3.2078]
[1725041685140,0.40314,2480.6,2480.4,3.2078]
[1725041685437,4.30698906,2480.5,2480.4,3.2078]
[1725041686040,4.53816606,2480.8,2480.3,0.40924009]
[1725041686239,4.53816606,2480.5,2480.4,3.2078]
[1725041686432,4.53816606,2480.5,2480.3,0.40923009]
[1725041686634,0.40315,2480.6,2480.3,3.61703009]
[1725041686833,4.55720041,2480.5,2480.3,3.61703009]
[1725041688342,4.55720041,2480.5,2480.3,0.00605009]
[1725041688639,4.6835788,2480.6,2480.3,0.00605009]
[1725041688847,4.6835788,2480.6,2480.4,0.40317]
[1725041689043,0.40314,2480.6,2480.4,0.40317]
[1725041689346,4.2804388,2480.5,2480.3,3.61703009]
[1725041689546,4.6836088,2480.5,2480.3,3.61703009]
[1725041689751,4.6836088,2480.5,2480.3,0.40923009]
[1725041690039,0.40317,2480.5,2480.3,0.40923009]
[1725041690239,4.49386811,2480.4,2480.3,3.61704009]
[1725041690845,4.68240718,2480.5,2480.3,0.40924009]
[1725041691147,0.40317,2480.5,2480.3,0.40924009]
[1725041691347,4.52843083,2480.4,2480.3,0.40924009]
[1725041691754,4.52843083,2480.4,2480.3,3.61704009]
[1725041692041,0.40317,2480.5,2480.3,0.40924009]
[1725041692241,4.65717438,2480.6,2480.4,0.40317]
[1725041692445,4.65717438,2480.4,2480.3,0.40923009]
[1725041692643,0.40317,2480.5,2480.3,0.40923009]
[1725041692945,3.2078,2482.8,2481.1,42.559]
[1725041693146,3.2078,2482.8,2481.9,3.2078]
[1725041693147,0.40285,2482.5,2481.9,3.2078]
[1725041693346,4.55271597,2482.2,2482.1,1.41016]
[1725041693648,1.10936034,2482.4,2482.3,0.40287]
[1725041693849,2.38417,2484.1,2483.0,0.40275]
[1725041693850,0.3772,2483.4,2483.0,0.40275]
[1725041694147,0.3772,2483.4,2483.0,0.00605009]
[1725041694148,4.49254024,2483.2,2483.0,0.00605009]
[1725041694448,0.38325009,2483.4,2482.5,0.40282]
[1725041694449,9.00179,2483.3,2482.5,0.40282]
[1725041694646,11.03325009,2483.4,2482.8,0.40278]
[1725041694647,0.40273,2483.2,2482.8,0.40278]
[1725041694941,0.38325009,2483.4,2482.8,4.65]
[1725041694942,0.40274,2483.1,2482.8,4.65]
[1725041695149,4.59234722,2483.3,2482.6,3.2078]
[1725041695150,4.38638765,2483.3,2482.6,3.2078]
[1725041695346,4.38638765,2483.1,2482.8,4.65]
[1725041695553,0.40273,2483.2,2482.8,4.65]
[1725041695743,4.34670023,2483.3,2482.8,4.65]
[1725041695944,0.40271,2483.3,2482.8,4.65]
[1725041696249,0.40273,2483.2,2482.8,4.65]
[1725041696450,4.34670023,2483.3,2482.8,7.8578]
[1725041696749,0.00605009,2483.4,2483.1,8.26053]
[1725041696948,0.00605009,2483.4,2483.3,0.40271]
[1725041697454,0.00605009,2483.4,2483.3,4.42991]
[1725041697661,0.00605009,2483.4,2483.3,4.0272]
[1725041697948,0.00605009,2483.4,2483.0,0.40275]
[1725041698140,0.00605009,2483.4,2483.0,3.2078]
[1725041698337,0.00605009,2483.4,2483.3,0.40271]
[1725041698541,0.00605009,2483.4,2483.3,3.2078]
[1725041698837,4.74426613,2483.4,2483.3,3.2078]
[1725041699041,0.40271,2483.3,2482.9,4.65]
[1725041699240,0.40271,2483.3,2482.9,5.05276]
[1725041699545,4.33552604,2483.2,2482.9,4.65]
[1725041699852,0.40278,2482.9,2482.7,0.00605009]
[1725041700147,4.57306695,2482.8,2482.7,0.00605009]
[1725041700648,9.00385695,2482.8,2482.7,0.00605009]
[1725041701050,4.43079,2482.8,2482.7,0.00605009]
[1725041701253,8.97245803,2482.8,2482.7,0.00605009]
[1725041701552,4.54166803,2482.8,2482.7,0.00605009]
[1725041701746,4.54166803,2482.8,2482.7,0.40885009]
[1725041702046,0.40276,2483.0,2482.7,0.00605009]
[1725041702047,4.60345712,2482.9,2482.7,0.00605009]
[1725041702350,0.40277,2482.9,2482.7,3.21385009]
[1725041702645,8.70246716,2482.9,2482.7,0.00605009]
[1725041703042,0.40279,2482.8,2482.7,0.00605009]
[1725041703243,4.65,2482.5,2481.1,3.2078]
[1725041703449,4.65,2482.5,2480.4,0.3785]
[1725041703450,3.2078,2481.5,2481.0,0.40307]
[1725041703642,4.21531,2481.5,2480.6,8.2384]
[1725041703954,46.74419903,2481.4,2480.9,0.40309]
[1725041704158,5.55191489,2481.4,2481.2,0.40304]
[1725041704452,5.55191489,2481.4,2480.9,0.00605009]
[1725041704453,0.40308,2481.0,2480.9,0.00605009]
[1725041704838,14.97230193,2481.0,2480.9,0.00605009]
[1725041705343,8.97230193,2481.0,2480.9,0.00605009]
[1725041705751,8.56922193,2481.0,2480.9,0.00605009]
[1725041705951,8.56922193,2481.0,2480.9,0.40914009]
[1725041706145,8.56922193,2481.0,2480.9,0.00605009]
[1725041706341,8.56922193,2481.0,2480.9,0.40914009]
[1725041706739,8.97230193,2481.0,2480.9,0.00605009]
[1725041707147,0.40312,2480.8,2480.2,3.2078]
[1725041707453,3.2078,2481.1,2480.9,0.40309]
[1725041707749,4.57836855,2480.7,2480.5,3.61095]
[1725041708051,4.21561,2480.8,2480.4,0.00605009]
[1725041708240,3.2078,2480.5,2480.4,0.00605009]
[1725041708437,4.57836855,2480.6,2480.5,0.40316]
[1725041708638,4.0312,2480.7,2480.5,0.40316]
[1725041708845,8.62919518,2480.7,2480.5,0.40316]
[1725041709050,4.23725831,2480.6,2480.5,0.40316]
[1725041709351,4.23725831,2480.9,2480.7,0.40312]
[1725041709653,0.4031,2480.9,2480.6,0.40313]
[1725041710040,4.30729461,2480.9,2480.5,0.40315]
[1725041710367,0.40314,2480.7,2480.4,0.40922009]
[1725041710652,0.40316,2480.5,2480.4,0.00605009]
[1725041710847,4.82921341,2480.6,2480.4,0.00605009]
[1725041711152,4.42606341,2480.5,2480.4,0.00605009]
[1725041711354,4.0312,2480.6,2480.4,0.00605009]
[1725041711654,4.43780945,2480.5,2480.4,0.40923009]
[1725041711855,0.40305,2481.2,2480.9,0.40308]
[1725041712150,3.78423586,2481.4,2480.7,1.00783]
[1725041712151,4.43780945,2481.0,2480.7,1.00783]
[1725041712351,4.43780945,2481.0,2480.9,0.40309]
[1725041712556,0.40306,2481.2,2480.9,0.40309]
[1725041712755,0.40305,2481.2,2480.7,3.2078]
[1725041712943,4.50904565,2481.0,2480.9,0.40309]
[1725041713145,4.50904565,2481.1,2481.0,0.40308]
[1725041713343,4.43302641,2481.3,2481.1,0.40305]
[1725041713651,0.40303,2481.3,2481.0,0.40307]
[1725041713855,4.40771094,2481.3,2480.7,3.2078]
[1725041714253,4.81075094,2481.3,2480.7,3.2078]
[1725041714556,0.40305,2481.2,2480.9,0.40308]
[1725041714752,0.40306,2481.1,2480.8,0.4031]
[1725041715056,4.63015066,2481.1,2480.7,3.2078]
[1725041715459,0.40306,2481.1,2480.8,0.4031]
[1725041715756,5.02460238,2481.0,2480.8,0.40311]
[1725041715958,4.62152238,2481.0,2480.7,3.2078]
[1725041716160,4.62152238,2481.1,2480.7,3.2078]
[1725041716358,0.40314,2480.7,2480.4,0.00605009]
[1725041716660,4.396418,2480.6,2480.4,0.00605009]
[1725041716860,4.799568,2480.6,2480.4,0.00605009]
[1725041717165,0.40315,2480.6,2480.4,0.00605009]
[1725041717357,0.40316,2480.5,2480.4,0.00605009]
[1725041717558,4.9875835,2480.5,2480.4,0.00605009]
[1725041717761,4.43436,2480.5,2480.4,0.00605009]
[1725041717961,10.43436,2480.5,2480.4,0.00605009]
[1725041718258,0.40328,2479.8,2479.6,3.2078]
[1725041718660,4.31360778,2479.7,2479.6,3.2078]
[1725041718960,4.71689778,2479.7,2479.4,0.40333]
[1725041719150,0.40331,2479.6,2479.3,0.40939009]
[1725041719357,0.40331,2479.6,2479.3,0.00605009]
[1725041719660,4.31360778,2479.5,2479.4,0.40334]
[1725041719957,4.33448711,2479.7,2479.3,0.40939009]
[1725041720163,0.40334,2479.4,2479.3,0.00605009]
[1725041720554,12.98757711,2479.4,2479.3,0.00605009]
[1725041720960,12.98757711,2479.4,2478.6,0.40345]
[1725041720961,0.40341,2479.0,2478.6,0.40345]
[1725041721164,0.40341,2479.0,2478.5,3.2078]
[1725041721461,4.42405971,2478.9,2478.5,3.2078]
[1725041721661,4.42405971,2478.9,2478.8,0.40344]
[1725041721961,6.72727255,2479.7,2478.9,0.40341]
[1725041722160,4.55015097,2478.9,2478.8,0.40344]
[1725041722358,4.95352097,2479.2,2478.8,3.2078]
[1725041722559,0.4034,2479.1,2478.8,3.2078]
[1725041722764,0.40338,2479.2,2478.8,3.2078]
[1725041722965,4.26801672,2479.1,2478.8,3.2078]
[1725041723158,0.40338,2479.2,2478.8,3.2078]
[1725041723364,0.40339,2479.1,2478.9,0.4034]
[1725041723559,4.26801672,2479.0,2478.9,0.4034]
[1725041723760,4.67140672,2479.1,2478.9,0.4034]
[1725041724070,4.43810672,2479.2,2478.9,0.4034]
[1725041724071,0.40338,2479.2,2478.9,0.4034]
[1725041724261,4.43810672,2479.0,2478.9,0.4034]
[1725041724460,4.84149672,2479.1,2478.9,0.4034]
[1725041724663,4.84149672,2479.1,2478.8,3.2078]
[1725041724664,0.40336,2479.3,2479.0,0.4034]
[1725041725056,4.34533002,2479.2,2478.8,3.2078]
[1725041725262,4.34533002,2479.2,2479.0,0.40339]
[1725041725462,4.34533002,2479.2,2478.8,3.2078]
[1725041725463,4.34533002,2479.2,2479.1,0.40339]
[1725041726070,8.37893002,2479.2,2479.0,0.40339]
[1725041726269,4.34533002,2479.2,2479.0,0.40339]
[1725041726474,4.34533002,2479.2,2479.1,0.40339]
[1725041726764,0.3733,2479.5,2479.4,0.40334]
[1725041726966,0.3733,2479.5,2479.3,0.40334]
[1725041727166,4.4565508,2479.4,2479.2,0.40336]
[1725041727364,0.40334,2479.4,2479.1,0.40338]
[1725041727778,0.40334,2479.4,2478.8,4.21638]
[1725041727779,0.40339,2479.1,2478.8,3.2078]
[1725041727966,4.40764991,2479.3,2478.8,0.40343]
[1725041727967,0.40341,2479.0,2478.8,0.40343]
[1725041728166,0.40341,2479.0,2478.6,0.00403342]
[1725041728167,0.40344,2478.8,2478.6,0.00403342]
[1725041728377,4.40764991,2479.0,2478.6,0.00403342]
[1725041728378,0.40345,2478.7,2478.6,0.00403342]
[1725041728567,4.81109991,2478.7,2478.6,0.00403342]
[1725041728770,4.46179197,2478.9,2478.6,0.40749342]
[1725041728974,0.40344,2478.8,2478.6,0.40749342]
[1725041729177,4.46179197,2478.7,2478.6,0.00403342]
[1725041729383,0.40344,2478.8,2478.6,0.40750342]
[1725041729673,0.3729,2479.2,2478.6,5.04708342]
[1725041729877,0.3729,2479.2,2478.7,1.00864]
[1725041730073,4.51720234,2479.0,2478.9,0.40342]
[1725041730385,0.77627,2479.2,2478.9,0.40342]
[1725041730673,4.73396145,2479.1,2478.9,0.40342]
[1725041730874,0.40341,2479.0,2478.8,0.40343]
[1725041731181,4.73399145,2478.9,2478.7,3.2078]
[1725041731379,4.33057145,2478.9,2478.6,0.40749342]
[1725041731684,3.2078,2478.9,2478.6,0.00403342]
[1725041731869,3.2078,2478.9,2478.7,0.40345]
[1725041732067,4.5327799,2478.8,2478.7,0.40345]
[1725041732470,3.5807,2479.2,2478.6,0.00403342]
[1725041732471,4.5327799,2479.1,2478.6,0.00403342]
[1725041732673,0.40339,2479.1,2478.8,0.40343]
[1725041732884,0.40339,2479.1,2478.8,0.40344]
[1725041732885,4.26841813,2478.9,2478.8,0.40344]
[1725041733095,4.26841813,2479.1,2478.6,0.00403342]
[1725041733376,3.5807,2479.2,2478.6,0.00403342]
[1725041733377,3.5807,2479.2,2478.6,1.01269342]
[1725041733583,4.26841813,2479.1,2479.0,0.40339]
[1725041733785,0.3733,2479.5,2479.2,0.40336]
[1725041734083,4.64590835,2479.1,2479.0,3.61119]
[1725041734467,0.40336,2479.3,2479.0,3.61119]
[1725041734670,4.64528784,2479.1,2479.0,3.2078]
[1725041734870,4.64528784,2479.1,2479.0,3.6112]
[1725041735072,4.64528784,2479.4,2479.2,0.40336]
[1725041735279,0.40334,2479.4,2479.1,0.40338]
[1725041735580,5.04862784,2479.4,2479.1,0.40339]
[1725041735779,4.64528784,2479.4,2479.2,0.40337]
[1725041736280,0.40337,2479.2,2479.0,3.6112]
[1725041736476,4.64528784,2479.4,2479.1,0.40339]
[1725041736677,3.5811,2479.5,2479.0,3.6112]
[1725041736678,4.32814206,2479.1,2479.0,3.6112]
[1725041736880,4.32814206,2479.4,2479.3,0.40335]
[1725041737178,0.3733,2479.5,2479.4,0.40334]
[1725041737369,0.38265009,2479.8,2479.7,0.40329]
[1725041737573,0.38265009,2479.8,2479.4,3.2078]
[1725041737774,0.38265009,2479.8,2479.3,0.40335]
[1725041737775,0.40331,2479.6,2479.3,0.40335]
[1725041738175,4.56401585,2479.5,2479.3,0.40335]
[1725041738370,4.56401585,2479.5,2479.0,3.2078]
[1725041738576,0.40336,2479.3,2479.0,3.6112]
[1725041738777,7.77181585,2479.5,2479.0,3.2078]
[1725041738778,0.40339,2479.1,2479.0,3.2078]
[1725041739172,4.80520678,2479.1,2479.0,3.2078]
[1725041739987,4.80520678,2479.1,2478.6,0.00403342]
[1725041739988,0.40341,2479.0,2478.6,0.00403342]
[1725041740183,3.2078,2478.9,2478.6,0.40749342]
[1725041740382,7.76918005,2478.9,2478.6,0.40749342]
[1725041740585,0.40344,2478.8,2478.6,0.00403342]
[1725041740884,4.48078501,2478.7,2478.6,0.00403342]
[1725041741083,4.48078501,2478.7,2478.6,4.44190342]
[1725041741284,0.78199,2479.1,2478.7,0.40344]
[1725041741488,0.78199,2479.1,2478.6,0.00403342]
[1725041741489,4.48078501,2479.0,2478.6,0.00403342]
[1725041741781,4.48078501,2479.0,2478.7,0.40344]
[1725041741782,4.88418501,2479.0,2478.7,0.40344]
[1725041742685,4.48078501,2479.0,2478.7,0.40344]
[1725041743080,4.48078501,2479.0,2478.9,0.40342]
[1725041743789,4.21008545,2479.1,2478.9,0.40342]
[1725041743988,0.40339,2479.1,2478.8,3.61122]
[1725041744192,4.21008545,2479.1,2478.6,0.00403342]
[1725041744494,7.82127545,2479.1,2478.8,0.40343]
[1725041744884,7.82127545,2479.1,2478.9,0.40342]
[1725041745084,7.82127545,2479.1,2478.6,0.00403342]
[1725041745085,7.82127545,2479.1,2478.8,0.40343]
[1725041745790,7.82127545,2479.1,2478.6,0.00403342]
[1725041745791,4.21008545,2479.1,2478.6,0.00403342]
[1725041746005,4.21008545,2479.1,2479.0,0.4034]
[1725041746487,4.21008545,2479.1,2479.0,4.437]
[1725041747385,4.21008545,2479.1,2479.0,5.44552]
[1725041747692,0.7402,2479.6,2479.3,0.40334]
[1725041747693,1.14351,2479.6,2479.3,0.40334]
[1725041747992,4.88891171,2479.5,2479.3,0.40335]
[1725041748202,4.48559171,2479.5,2479.4,0.40334]
[1725041750097,4.48559171,2479.5,2479.1,3.2078]
[1725041750393,0.40336,2479.3,2479.1,3.2078]
[1725041750779,4.49824342,2479.2,2479.1,3.2078]
[1725041750980,4.49824342,2479.2,2479.1,3.61119]
[1725041751493,0.40337,2479.3,2479.1,3.61119]
[1725041751796,4.49824342,2479.2,2479.1,3.61119]
[1725041752593,4.90161342,2479.2,2479.1,3.2078]
[1725041752788,0.4034,2479.1,2478.8,0.40342]
[1725041753005,0.40341,2479.0,2478.6,3.21183342]
[1725041753190,0.40343,2478.9,2478.6,3.21183342]
[1725041753393,0.40345,2478.8,2478.6,3.21183342]
[1725041753594,0.40345,2478.7,2478.6,3.21183342]
[1725041753795,0.3932,2478.8,2478.7,0.40345]
[1725041754093,4.90169342,2478.7,2478.6,3.21183342]
[1725041754392,0.79665,2478.8,2478.6,4.02514665]
[1725041754588,0.79665,2478.8,2478.6,3.61530342]
[1725041754589,4.67138878,2478.7,2478.6,3.61530342]
[1725041754800,5.07483878,2478.7,2478.6,3.62166284]
[1725041755183,5.07483878,2478.7,2478.6,4.02513284]
[1725041755596,5.07483878,2478.7,2478.6,3.62166284]
[1725041755997,4.67138878,2478.7,2478.6,4.02513284]
[1725041756997,4.67138878,2478.7,2478.6,3.61530342]
[1725041757691,4.67138878,2478.7,2478.6,4.62398342]
[1725041757897,0.3939,2479.1,2478.6,8.25491342]
[1725041758193,4.42885783,2479.0,2478.9,0.40342]
[1725041759993,4.42885783,2479.0,2478.9,1.41198]
[1725041760203,4.42885783,2479.0,2478.9,5.44558]
[1725041760388,3.51947255,2479.4,2479.3,0.40335]
[1725041760587,0.40333,2479.5,2479.3,0.40335]
[1725041760785,4.67278431,2479.4,2479.3,0.40335]
[1725041760992,4.26944431,2479.4,2479.3,0.40335]
[1725041761191,4.26944431,2479.5,2479.4,0.40332]
[1725041761595,8.70557431,2479.5,2479.0,4.21629]
[1725041761799,0.40333,2479.5,2479.3,0.40334]
[1725041762300,4.26944431,2479.6,2479.0,4.21629]
[1725041762301,0.40338,2479.2,2479.0,0.40339]
[1725041762493,0.40338,2479.2,2479.1,0.40977406]
[1725041762494,3.61117,2479.2,2479.1,0.40977406]
[1725041762803,4.21979525,2479.1,2479.0,0.4034]
[1725041762996,0.58337596,2479.2,2479.1,1.41187]
[1725041763307,0.4033,2479.7,2479.5,0.40332]
[1725041763694,3.98843009,2479.8,2479.6,0.4033]
[1725041763894,3.98843009,2479.8,2479.2,1.00843]
[1725041763895,3.98843009,2479.8,2479.7,0.40329]
[1725041764092,0.78062009,2479.8,2479.7,0.81299067]
[1725041764291,9.20329224,2479.8,2479.7,0.40329]
[1725041764492,4.39592224,2479.8,2479.7,0.40329]
[1725041764697,0.00605009,2479.8,2479.7,10.07004421]
[1725041764900,0.58234205,2480.5,2479.9,1.00815]
[1725041765106,0.58234205,2480.5,2480.3,0.40318]
[1725041765297,0.58234205,2480.5,2480.4,0.40318]
[1725041765608,4.82353538,2480.5,2480.4,0.40318]
[1725041766901,4.45603538,2480.5,2480.4,0.40318]
[1725041767599,4.45603538,2480.5,2480.2,0.00605009]
[1725041767600,8.48723538,2480.5,2480.2,0.00605009]
[1725041767794,3.97238,2480.4,2480.2,0.00605009]
[1725041768003,0.40319,2480.3,2480.2,0.00605009]
[1725041768199,5.00104646,2480.3,2480.2,0.00605009]
[1725041768397,9.03304646,2480.3,2480.2,0.00605009]
[1725041769803,16.04103646,2480.3,2480.2,0.00605009]
[1725041770208,0.40329,2479.8,2479.6,3.2078]